bitfinex-derivatives/quotes_BNBF0:USTF0_20250316
["timestamp","ask_amount","ask_price","bid_price","bid_amount"]
[1742109052276,0.32978811,606.45,605.5,0.30322858]
[1742109052480,0.32978811,606.45,605.49,1.13743292]
[1742109052880,0.32978811,606.45,605.43,1.13743292]
[1742109053079,0.32978811,606.45,605.44,0.30321868]
[1742109053379,0.32978811,606.45,605.45,1.13743292]
[1742109053578,0.32978811,606.45,605.46,0.30321868]
[1742109053783,0.32978811,606.45,605.45,1.13743292]
[1742109054181,0.32978811,606.45,605.47,1.13743292]
[1742109054581,0.32978811,606.45,605.43,1.13743292]
[1742109054879,0.32978811,606.45,605.44,0.3032152]
[1742109055083,0.32978811,606.45,605.43,1.13743292]
[1742109055285,0.32978811,606.45,605.44,0.3032152]
[1742109055480,0.32978811,606.45,605.45,1.13743292]
[1742109055678,0.32978811,606.45,605.46,0.3032152]
[1742109055883,0.32978811,606.45,605.45,1.13743292]
[1742109056185,0.32978811,606.45,605.46,0.30320308]
[1742109056884,0.32978811,606.45,605.47,1.13743292]
[1742109057387,0.32978811,606.45,605.48,0.3031979]
[1742109057585,0.32978811,606.45,605.44,0.3031979]
[1742109057884,0.32978811,606.45,605.45,0.30319555]
[1742109058085,0.32978811,606.45,605.45,1.13743292]
[1742109058885,0.32978811,606.45,605.43,1.13743292]
[1742109059285,0.32978811,606.45,605.43,2.26943292]
[1742109060289,0.32978811,606.45,605.44,1.13743292]
[1742109079310,0.32978811,606.45,605.45,1.211]
[1742109079909,0.32978811,606.45,605.46,0.30324393]
[1742109080111,0.32978811,606.45,605.46,1.44067685]
[1742109080313,0.32978811,606.45,605.47,0.30324393]
[1742109080614,0.32978811,606.45,605.48,1.13743292]
[1742109080915,0.32978811,606.45,605.49,0.30324743]
[1742109081614,0.32978811,606.45,605.5,1.13743292]
[1742109081914,0.32978811,606.45,605.51,0.30324743]
[1742109082213,0.32978811,606.45,605.52,1.13743292]
[1742109082409,0.32978811,606.45,605.53,0.30324743]
[1742109082813,0.32978811,606.45,605.52,1.13743292]
[1742109082814,0.32978811,606.45,605.54,0.30324481]
[1742109083011,0.32978811,606.45,605.54,1.13743292]
[1742109083217,0.32978811,606.45,605.55,0.30324481]
[1742109083715,0.32978811,606.45,605.56,1.13743292]
[1742109083910,0.32978811,606.45,605.57,0.30324481]
[1742109084109,0.32978811,606.45,605.58,1.13743292]
[1742109084711,0.32978811,606.45,605.45,1.211]
[1742109084712,0.32978811,606.45,605.46,1.13743292]
[1742109084921,0.32978811,606.45,605.47,0.30324428]
[1742109085111,0.32978811,606.45,605.48,1.13743292]
[1742109085318,0.32978811,606.45,605.49,0.30324428]
[1742109085715,0.32978811,606.45,605.5,1.13743292]
[1742109085913,0.32978811,606.45,605.51,0.30324428]
[1742109086617,0.32978811,606.45,605.52,1.13743292]
[1742109086813,0.32978811,606.45,605.53,0.30324428]
[1742109087020,0.32978811,606.45,605.54,1.13743292]
[1742109087817,0.32978811,606.45,605.46,1.13743292]
[1742109088018,0.32978811,606.45,605.47,0.30325865]
[1742109088616,0.32978811,606.45,605.48,1.13743292]
[1742109088818,0.32978811,606.45,605.49,0.30325865]
[1742109089613,0.32978811,606.45,605.5,1.13743292]
[1742109089821,0.32978811,606.45,605.51,0.30325865]
[1742109090015,0.32978811,606.45,605.51,1.71025865]
[1742109090219,0.32978811,606.45,605.52,0.30325865]
[1742109090416,0.32978811,606.45,605.52,1.44069157]
[1742109090617,0.32978811,606.45,605.53,0.30325865]
[1742109091116,0.32978811,606.45,605.54,1.13743292]
[1742109091619,0.32978811,606.45,605.55,0.30325782]
[1742109092011,0.32978811,606.45,605.53,0.30325782]
[1742109092214,0.32978811,606.45,605.52,1.13743292]
[1742109092515,0.32978811,606.45,605.54,1.13743292]
[1742109093314,0.32978811,606.45,605.55,0.30325439]
[1742109093514,0.32978811,606.45,605.53,0.30325439]
[1742109093914,0.32978811,606.45,605.54,1.13743292]
[1742109094624,0.32978811,606.45,605.52,1.13743292]
[1742109098223,0.32978811,606.45,605.52,2.50943292]
[1742109098417,0.32978811,606.45,605.53,1.13743292]
[1742109102024,0.32978811,606.45,605.54,1.1413847]
[1742109102726,0.32978811,606.45,605.55,1.1413847]
[1742109103726,0.32978811,606.45,605.56,1.1413847]
[1742109104334,0.32978811,606.45,605.57,1.1413847]
[1742109104833,0.32978811,606.45,605.58,1.1413847]
[1742109105727,0.32978811,606.45,605.59,1.1413847]
[1742109106131,0.32978811,606.45,605.52,1.372]
[1742109106727,0.32978811,606.45,605.53,1.14137707]
[1742109107333,0.32978811,606.45,605.52,1.372]
[1742109108436,2.51296556,606.19,605.52,1.372]
[1742109108636,0.329935,606.18,605.52,1.372]
[1742109110432,0.329935,606.18,605.52,2.931]
[1742109127747,0.329935,606.18,605.52,4.077]
[1742109303692,2.51296556,606.15,605.52,4.077]
[1742109303898,0.32995677,606.14,605.52,4.077]
[1742109305803,2.51296556,606.13,605.52,4.077]
[1742109306002,0.32996766,606.12,605.52,4.077]
[1742109323619,0.32978811,606.45,605.52,4.077]
[1742109329320,2.51296556,606.42,605.52,4.077]
[1742109329525,0.3298153,606.4,605.52,4.077]
[1742109333324,2.51296556,606.38,605.52,4.077]
[1742109333525,0.32983706,606.36,605.52,4.077]
[1742109335126,0.32983706,606.36,605.52,0.77171763]
[1742109335323,0.32983706,606.36,603.65,1.22974189]
[1742109335530,0.32983706,606.36,604.31,0.28744652]
[1742109335929,0.32983706,606.36,604.32,0.30375736]
[1742109336128,0.32983706,606.36,603.67,0.30375736]
[1742109336327,0.32983706,606.36,604.33,0.30375736]
[1742109336527,0.32983706,606.36,604.34,0.30375736]
[1742109336728,0.32983706,606.36,603.69,0.30375736]
[1742109336929,0.32983706,606.36,603.81,0.33123002]
[1742109337130,0.32983706,606.36,603.82,0.30375736]
[1742109337329,0.32983706,606.36,603.92,0.33116969]
[1742109337330,2.51296556,606.34,603.92,0.33116969]
[1742109337628,0.32991323,606.22,603.93,0.30375736]
[1742109337828,0.32991323,606.22,603.95,0.33115324]
[1742109338328,0.32991323,606.22,603.96,0.30374541]
[1742109338525,0.32991323,606.22,603.98,0.33113679]
[1742109338725,0.32991323,606.22,603.99,0.30374541]
[1742109338925,0.32991323,606.22,604.01,0.33112034]
[1742109339128,0.28761281,606.21,604.02,0.30374541]
[1742109339328,0.3299731,606.11,604.04,0.3311039]
[1742109339630,0.3299731,606.11,604.05,0.30374541]
[1742109339830,0.3299731,606.11,604.07,0.33108745]
[1742109340029,0.3299731,606.11,604.08,0.30374541]
[1742109340231,0.3299731,606.11,604.1,0.33107101]
[1742109340431,0.3299731,606.11,604.11,0.30374541]
[1742109340630,0.3299731,606.11,604.13,0.33105457]
[1742109340832,0.3299731,606.11,604.14,0.30374541]
[1742109341032,0.3299731,606.11,604.16,0.33103813]
[1742109341232,0.3299731,606.11,604.17,0.30374541]
[1742109341433,2.51296556,606.01,604.19,0.33102169]
[1742109341735,0.33003844,605.99,604.2,3.34391848]
[1742109342031,0.33003844,605.99,604.21,0.30374541]
[1742109342233,0.33003844,605.99,604.22,3.37117833]
[1742109342527,0.33003844,605.99,604.23,0.63474519]
[1742109342732,0.33003844,605.99,604.24,3.67491278]
[1742109342926,0.33003844,605.99,604.25,0.63473423]
[1742109343129,1.85596431,605.99,604.26,0.63472876]
[1742109343433,5.49375039,605.99,604.27,3.67489635]
[1742109343733,5.16371195,605.98,604.28,0.6347178]
[1742109343932,0.33005478,605.96,604.29,0.63471232]
[1742109344135,1.85598065,605.96,604.3,0.63470685]
[1742109344334,0.33005478,605.96,604.31,0.63470137]
[1742109344534,0.33005478,605.96,604.32,0.63469589]
[1742109344735,0.33005478,605.96,604.33,0.63469042]
[1742109344934,0.33005478,605.96,604.34,0.30374541]
[1742109345135,0.33005478,605.96,604.34,3.34391848]
[1742109345336,0.33005478,605.96,604.35,0.30374541]
[1742109345535,0.33005478,605.96,604.34,3.04017307]
[1742109345834,0.33005478,605.96,604.36,3.04017307]
[1742109346234,0.33005478,605.96,604.37,0.30374087]
[1742109347033,0.33005478,605.96,604.38,3.04017307]
[1742109347233,0.33005478,605.96,604.39,0.30374087]
[1742109347833,0.33005478,605.96,604.4,0.33090668]
[1742109348033,0.33005478,605.96,604.41,3.34391394]
[1742109348231,0.33005478,605.96,604.42,0.30374087]
[1742109348435,0.33005478,605.96,604.43,3.04017307]
[1742109348737,0.33005478,605.96,604.44,0.30374087]
[1742109349129,0.33005478,605.96,604.45,0.33087931]
[1742109349333,0.33005478,605.96,604.46,0.30374087]
[1742109349535,0.33005478,605.96,604.47,0.33086836]
[1742109349737,0.33005478,605.96,604.48,0.30374087]
[1742109349932,0.33005478,605.96,604.49,3.04017307]
[1742109350143,0.33005478,605.96,604.5,0.30374087]
[1742109350333,0.33005478,605.96,604.51,3.37101954]
[1742109350533,0.33005478,605.96,604.52,0.63458186]
[1742109350733,0.33005478,605.96,604.53,0.63457639]
[1742109350933,0.33005478,605.96,604.54,0.63457092]
[1742109351138,0.33005478,605.96,604.55,0.30374087]
[1742109351339,0.33005478,605.96,604.54,0.33083005]
[1742109351541,0.33005478,605.96,604.55,3.04017307]
[1742109351841,0.33005478,605.96,604.56,0.3036381]
[1742109352440,0.33005478,605.96,604.57,3.04017307]
[1742109352640,0.33005478,605.96,604.58,0.3036381]
[1742109352938,0.33005478,605.96,604.59,3.04017307]
[1742109353341,0.33005478,605.96,604.6,0.303613]
[1742109353537,0.33005478,605.96,604.59,3.04017307]
[1742109353735,0.33005478,605.96,604.61,3.04017307]
[1742109354443,0.33005478,605.96,604.62,0.30361303]
[1742109354836,0.33005478,605.96,604.63,3.04017307]
[1742109355437,0.33005478,605.96,604.64,0.30359017]
[1742109355842,0.33005478,605.96,604.65,0.30359017]
[1742109356038,0.33005478,605.96,604.56,0.30359017]
[1742109356246,0.33005478,605.96,604.57,3.34376324]
[1742109356445,0.33005478,605.96,604.58,0.30359017]
[1742109356745,0.33005478,605.96,604.58,0.63439833]
[1742109356943,0.33005478,605.96,604.59,3.34376324]
[1742109357144,0.33005478,605.96,604.6,0.30357683]
[1742109357643,0.33005478,605.96,604.61,0.33079175]
[1742109357843,0.33005478,605.96,604.62,0.30357683]
[1742109358038,0.33005478,605.96,604.63,0.3307808]
[1742109358241,0.33005478,605.96,604.64,0.30357683]
[1742109358441,0.33005478,605.96,604.65,0.33076986]
[1742109358640,0.33005478,605.96,604.66,0.30357683]
[1742109358844,0.33005478,605.96,604.67,3.37093199]
[1742109359038,0.33005478,605.96,604.68,0.63433028]
[1742109359242,0.33005478,605.96,604.69,0.63432481]
[1742109359444,0.33005478,605.96,604.7,0.30357683]
[1742109359940,0.33005478,605.96,604.71,3.04017307]
[1742109360241,0.33005478,605.96,604.72,0.30357683]
[1742109360646,0.33005478,605.96,604.71,3.04017307]
[1742109360851,0.33005478,605.96,604.72,0.30354383]
[1742109361047,0.33005478,605.96,604.73,3.04017307]
[1742109361249,0.33005478,605.96,604.74,0.30354383]
[1742109361650,0.33005478,605.96,604.75,3.04017307]
[1742109361851,0.33005478,605.96,604.76,0.30354383]
[1742109362353,0.33005478,605.96,604.77,3.04017307]
[1742109362652,0.33005478,605.96,604.78,0.30354383]
[1742109362951,0.33005478,605.96,604.79,3.04017307]
[1742109363150,0.33005478,605.96,604.8,0.30354383]
[1742109363650,0.33005478,605.96,604.81,3.04017307]
[1742109363848,0.33005478,605.96,604.82,0.30354383]
[1742109364751,0.33005478,605.96,604.83,3.04017307]
[1742109365346,0.33005478,605.96,604.84,0.30355467]
[1742109365752,0.33005478,605.96,604.85,1.14152317]
[1742109366555,0.33005478,605.96,604.7,3.03341095]
[1742109366752,0.33005478,605.96,604.71,0.3035527]
[1742109368959,0.33005478,605.96,604.72,0.33073157]
[1742109369255,0.33005478,605.96,604.73,0.3035527]
[1742109369456,0.33005478,605.96,604.74,0.33072064]
[1742109369649,0.33005478,605.96,604.75,1.44507587]
[1742109369851,0.33005478,605.96,604.76,0.3035527]
[1742109370156,0.33005478,605.96,604.77,3.03341095]
[1742109370357,0.33005478,605.96,604.78,0.3035527]
[1742109370559,0.33005478,605.96,604.79,3.03341095]
[1742109370752,0.33005478,605.96,604.8,0.3035527]
[1742109371458,0.33005478,605.96,604.81,3.03341095]
[1742109371659,0.33005478,605.96,604.82,0.30353054]
[1742109372259,0.33005478,605.96,604.83,3.03341095]
[1742109372659,0.33005478,605.96,604.75,3.03341095]
[1742109372855,0.33005478,605.96,604.76,0.30353243]
[1742109373055,0.33005478,605.96,604.77,3.03341095]
[1742109373255,0.33005478,605.96,604.78,0.30353243]
[1742109373560,0.33005478,605.96,604.79,3.03341095]
[1742109373859,0.33005478,605.96,604.8,0.30353243]
[1742109374260,0.33005478,605.96,604.81,3.03341095]
[1742109374958,0.33005478,605.96,604.77,3.03341095]
[1742109375359,0.33005478,605.96,604.78,0.30353328]
[1742109375860,0.33005478,605.96,604.79,3.03341095]
[1742109376160,0.33005478,605.96,604.8,0.30353328]
[1742109377055,0.33005478,605.96,604.81,3.03341095]
[1742109377254,0.33005478,605.96,604.82,0.30353328]
[1742109377858,0.33005478,605.96,604.83,3.03341095]
[1742109378160,0.33005478,605.96,604.84,0.30353328]
[1742109379154,0.33005478,605.96,604.76,1.242]
[1742109379155,0.33005478,605.96,604.85,3.03341095]
[1742109379363,0.33005478,605.96,604.86,0.30353672]
[1742109379861,0.33005478,605.96,604.87,1.14152317]
[1742109380056,0.33005478,605.96,604.88,0.30353672]
[1742109380562,0.33005478,605.96,604.89,1.14152317]
[1742109380759,0.33005478,605.96,604.9,0.30353672]
[1742109381161,0.33005478,605.96,604.91,1.14152317]
[1742109382563,0.33005478,605.96,604.76,1.242]
[1742109382564,0.33005478,605.96,604.92,0.30354287]
[1742109382859,0.33005478,605.96,604.78,0.30354287]
[1742109383059,0.33005478,605.96,604.79,0.30354287]
[1742109383262,0.33005478,605.96,604.8,0.30354287]
[1742109383963,0.33005478,605.96,604.81,3.0328269]
[1742109384163,0.33005478,605.96,604.82,0.30354287]
[1742109384563,0.33005478,605.96,604.83,3.0328269]
[1742109384765,0.33005478,605.96,604.84,0.30353096]
[1742109385162,0.33005478,605.96,604.85,3.0328269]
[1742109385363,0.33005478,605.96,604.86,0.30353096]
[1742109385865,0.33005478,605.96,604.87,3.0328269]
[1742109386066,0.33005478,605.96,604.88,0.30353096]
[1742109386465,0.33005478,605.96,604.89,1.96553096]
[1742109386659,0.33005478,605.96,604.9,1.44505413]
[1742109386865,0.33005478,605.96,604.91,0.30353096]
[1742109387364,0.33005478,605.96,604.92,1.14152317]
[1742109387564,0.33005478,605.96,604.93,0.30353096]
[1742109388366,0.33005478,605.96,604.92,1.313]
[1742109388567,0.33005478,605.96,604.93,0.30353071]
[1742109391569,0.33005478,605.96,604.92,1.313]
[1742109391774,0.33005478,605.96,604.94,1.18170606]
[1742109392272,0.33005478,605.96,604.95,1.18170606]
[1742109392867,0.33005478,605.96,604.96,1.18170606]
[1742109393472,0.33005478,605.96,604.97,1.18170606]
[1742109394074,0.33005478,605.96,604.98,1.18170606]
[1742109394668,0.33005478,605.96,604.99,1.18170606]
[1742109395974,0.33005478,605.96,605.0,1.18170606]
[1742109396776,0.33005478,605.96,605.01,1.18170606]
[1742109397676,0.33005478,605.96,605.02,1.18170606]
[1742109398276,0.33005478,605.96,605.03,1.18170606]
[1742109398976,0.33005478,605.96,604.93,3.07233754]
[1742109399277,0.33005478,605.96,604.94,0.30344636]
[1742109399576,0.33005478,605.96,604.94,3.07233754]
[1742109399776,0.33005478,605.96,604.95,0.30344651]
[1742109399977,0.33005478,605.96,604.96,3.07233754]
[1742109400176,0.33005478,605.96,604.97,0.30344651]
[1742109400870,0.33005478,605.96,604.98,3.07233754]
[1742109401069,0.33005478,605.96,604.99,0.30344651]
[1742109401475,0.33005478,605.96,605.0,3.37579911]
[1742109401670,0.33005478,605.96,605.01,0.30346157]
[1742109402070,0.33005478,605.96,605.02,1.18170606]
[1742109403377,0.33005478,605.96,604.93,3.0734926]
[1742109403571,0.33005478,605.96,604.94,0.30346434]
[1742109403771,0.33005478,605.96,604.95,3.40409843]
[1742109404078,0.33005478,605.96,604.96,0.63400902]
[1742109404277,0.33005478,605.96,604.97,0.63400355]
[1742109404477,0.33005478,605.96,604.98,0.30340865]
[1742109404877,0.33005478,605.96,604.99,3.0734926]
[1742109405376,2.51296556,606.45,605.0,0.6339704]
[1742109405578,0.32979354,606.44,605.01,0.63396493]
[1742109405877,0.32979354,606.44,604.99,3.0734926]
[1742109405878,0.32979354,606.44,605.02,0.63395947]
[1742109406080,0.32979354,606.44,605.03,0.63395401]
[1742109406281,0.32979354,606.44,605.04,0.63394854]
[1742109406571,0.32979354,606.44,605.05,0.63394308]
[1742109406777,0.32979354,606.44,605.06,0.63393762]
[1742109406977,0.32979354,606.44,605.07,0.63393215]
[1742109407178,0.32979354,606.44,605.08,0.6338832]
[1742109407475,0.32979354,606.44,605.09,0.63387774]
[1742109407676,0.32979354,606.44,605.1,0.63387228]
[1742109407980,0.32979354,606.44,605.11,0.63386681]
[1742109408177,0.32979354,606.44,605.12,0.3033484]
[1742109408474,0.32979354,606.44,605.12,3.0734926]
[1742109411277,0.32979354,606.44,605.12,1.18170606]
[1742109411979,0.32979354,606.44,605.11,0.33051841]
[1742109412881,0.32979354,606.44,605.12,1.18170606]
[1742109413379,0.32979354,606.44,605.12,3.07335023]
[1742109415677,0.32979354,606.44,605.13,1.035]
[1742109416780,0.32979354,606.44,605.14,3.07335023]
[1742109418878,0.32979354,606.44,605.14,3.40385226]
[1742109419484,0.32979354,606.44,605.15,0.33049657]
[1742109419780,0.32979354,606.44,605.15,3.4038468]
[1742109420185,0.32979354,606.44,605.16,0.30330642]
[1742109420385,0.32979354,606.44,605.17,0.63378832]
[1742109420586,0.32979354,606.44,605.18,0.63378286]
[1742109420784,0.32979354,606.44,605.19,0.6337774]
[1742109420982,0.32979354,606.44,605.2,0.63377194]
[1742109421184,0.32979354,606.44,605.21,0.63376648]
[1742109421381,0.32979354,606.44,605.22,0.33045834]
[1742109421584,0.32979354,606.44,605.23,0.30330268]
[1742109421787,0.32979354,606.44,605.24,0.33044742]
[1742109422081,0.32979354,606.44,605.25,3.37665291]
[1742109422287,0.32979354,606.44,605.26,0.30330268]
[1742109422685,0.32979354,606.44,605.27,3.07335023]
[1742109422881,0.32979354,606.44,605.28,0.30330268]
[1742109423988,0.32979354,606.44,605.29,3.07335023]
[1742109424183,0.32979354,606.44,605.3,0.30330268]
[1742109424388,0.32979354,606.44,605.31,1.18170606]
[1742109424681,0.32979354,606.44,605.32,0.30330268]
[1742109425089,0.32979354,606.44,605.31,2.81370606]
[1742109425388,0.32979354,606.44,605.33,1.18170606]
[1742109426089,0.32979354,606.44,605.31,1.632]
[1742109434895,0.32979354,606.44,605.31,2.791]
[1742109444008,2.51296556,606.43,605.31,2.791]
[1742109444203,0.32980442,606.42,605.31,3.903]
[1742109462926,0.32980442,606.42,605.32,1.18514262]
[1742109463327,0.32980442,606.42,605.31,1.112]
[1742109466227,0.32980442,606.42,605.31,2.372]
[1742109466729,0.32980442,606.42,605.31,3.987]
[1742109473331,0.32980442,606.42,605.32,1.18543823]
[1742109474134,0.32980442,606.42,605.33,1.18543823]
[1742109474832,0.32980442,606.42,605.32,1.18543823]
[1742109476640,0.32980442,606.42,605.33,1.514]
[1742109477338,0.32980442,606.42,605.34,1.18543823]
[1742109482539,0.32980442,606.42,605.33,1.514]
[1742109483636,0.32980442,606.42,605.34,1.18646473]
[1742109484241,0.32980442,606.42,605.35,1.18646473]
[1742109484840,0.32980442,606.42,605.34,1.18646473]
[1742109486341,0.32980442,606.42,605.35,1.418]
[1742109486840,0.32980442,606.42,605.36,1.18646473]
[1742109491540,0.32980442,606.42,605.37,0.994]
[1742109492339,0.32980442,606.42,605.38,1.18646473]
[1742109497949,0.32980442,606.42,605.38,3.08575773]
[1742109498545,0.32980442,606.42,605.38,1.18646473]
[1742109499250,0.32980442,606.42,605.37,0.994]
[1742109499751,0.32980442,606.42,605.38,4.64558104]
[1742109500653,0.32980442,606.42,605.39,3.08558104]
[1742109501152,0.32980442,606.42,605.4,3.08558104]
[1742109501855,0.32980442,606.42,605.41,3.08558104]
[1742109502551,0.32980442,606.42,605.42,1.18676194]
[1742109503054,0.32980442,606.42,605.43,1.18676194]
[1742109503549,0.32980442,606.42,605.44,1.18676194]
[1742109504353,0.32980442,606.42,605.45,1.18676194]
[1742109504957,0.32980442,606.42,605.46,1.18676194]
[1742109505456,0.32980442,606.42,605.47,1.18676194]
[1742109506054,0.32980442,606.42,605.48,1.18676194]
[1742109507157,0.32980442,606.42,605.49,1.18676194]
[1742109507355,0.32980442,606.42,605.38,1.56]
[1742109507558,0.32980442,606.42,605.39,0.30331054]
[1742109508060,0.32980442,606.42,605.38,1.56]
[1742109508361,0.32980442,606.42,605.4,3.08130203]
[1742109508660,0.32980442,606.42,605.41,0.30331067]
[1742109509059,0.32980442,606.42,605.42,1.18511616]
[1742109509359,0.32980442,606.42,605.43,1.18511616]
[1742109509759,0.32980442,606.42,605.38,1.56]
[1742109509760,0.32980442,606.42,605.44,1.18511616]
[1742109510361,0.32980442,606.42,605.45,1.18511616]
[1742109510658,0.32980442,606.42,605.46,1.18511616]
[1742109511059,0.32980442,606.42,605.38,1.56]
[1742109511257,0.32980442,606.42,605.39,0.30332266]
[1742109511653,0.32980442,606.42,605.4,1.17519206]
[1742109512358,0.32980442,606.42,605.41,1.17519206]
[1742109513154,0.32980442,606.42,605.42,1.17519206]
[1742109513859,0.32980442,606.42,605.39,1.17519206]
[1742109514259,0.32980442,606.42,605.4,0.30329681]
[1742109514860,0.32980442,606.42,605.41,1.17519206]
[1742109515057,0.32980442,606.42,605.42,0.30329681]
[1742109515456,0.32980442,606.42,605.43,1.17519206]
[1742109516062,0.32980442,606.42,605.44,1.17519206]
[1742109516669,0.32980442,606.42,605.45,1.17519206]
[1742109517369,0.32980442,606.42,605.46,1.17519206]
[1742109517571,0.32980442,606.42,605.47,1.17519206]
[1742109518166,0.32980442,606.42,605.48,0.30325628]
[1742109518672,0.32980442,606.42,605.49,1.17519206]
[1742109519172,0.32980442,606.42,605.5,1.17519206]
[1742109519672,0.32980442,606.42,605.51,0.3032517]
[1742109519971,0.32980442,606.42,605.51,1.47844376]
[1742109520171,0.32980442,606.42,605.52,0.3032517]
[1742109520574,0.32980442,606.42,605.53,1.17519206]
[1742109520772,0.32980442,606.42,605.54,0.3032517]
[1742109520973,0.32980442,606.42,605.53,1.17519206]
[1742109521271,0.32980442,606.42,605.55,1.17519206]
[1742109521474,0.32980442,606.42,605.56,1.17519206]
[1742109522272,0.32980442,606.42,605.57,1.17519206]
[1742109523174,0.32980442,606.42,605.58,1.17519206]
[1742109523575,0.32980442,606.42,605.59,1.17519206]
[1742109523770,0.32980442,606.42,605.59,2.36119206]
[1742109524074,0.32980442,606.42,605.6,2.61819206]
[1742109524470,0.32980442,606.42,605.6,1.443]
[1742109525373,0.32980442,606.42,605.61,1.17326028]
[1742109525973,0.32980442,606.42,605.6,1.443]
[1742109535273,0.32980442,606.42,605.61,1.17231153]
[1742109535780,0.32980442,606.42,605.62,1.17231153]
[1742109536178,0.32980442,606.42,605.6,1.443]
[1742109536973,0.32980442,606.42,605.61,1.17230164]
[1742109537773,0.32980442,606.42,605.6,1.443]
[1742109539482,0.32980442,606.42,605.61,1.17206208]
[1742109539980,0.32980442,606.42,605.62,0.30318936]
[1742109540375,0.32980442,606.42,605.63,1.17206208]
[1742109540578,0.32980442,606.42,605.6,1.443]
[1742109542984,0.32980442,606.42,605.59,1.186]
[1742109546079,0.32980442,606.42,605.6,1.308]
[1742109547387,0.32980442,606.42,605.61,1.17278284]
[1742109547782,0.32980442,606.42,605.62,1.17278284]
[1742109548484,0.32980442,606.42,605.61,1.17278284]
[1742109549790,0.32980442,606.42,605.62,0.30319027]
[1742109549990,0.32980442,606.42,605.63,1.17278284]
[1742109550891,0.32980442,606.42,605.61,1.17278284]
[1742109554092,0.32980442,606.42,605.62,0.30319074]
[1742109554990,0.32980442,606.42,605.63,1.17278284]
[1742109555191,0.32980442,606.42,605.63,2.73778284]
[1742109555493,0.32980442,606.42,605.64,1.17278284]
[1742109559698,0.32980442,606.42,605.65,0.30318109]
[1742109559895,0.32980442,606.42,605.66,0.30317918]
[1742109560198,0.32980442,606.42,605.67,1.47596202]
[1742109560398,0.32980442,606.42,605.68,0.30317918]
[1742109560693,0.32980442,606.42,605.69,1.47596396]
[1742109560900,0.32980442,606.42,605.69,1.17278284]
[1742109561299,0.32980442,606.42,605.68,1.17278284]
[1742109562700,0.32980442,606.42,605.68,2.81378284]
[1742109563396,0.32980442,606.42,605.69,1.17278284]
[1742109576211,2.51296556,606.64,605.69,1.17278284]
[1742109576512,2.51296556,608.24,605.7,1.17278284]
[1742109576810,0.32912058,607.68,605.7,1.17278284]
[1742109577005,0.32912058,607.68,605.71,1.17278284]
[1742109577206,0.32912058,607.68,605.71,1.50297385]
[1742109577407,1.91920619,607.68,605.71,1.50297385]
[1742109577612,0.28692512,607.67,605.72,1.47585139]
[1742109577808,2.51296556,607.24,605.73,0.30306855]
[1742109578010,0.32936991,607.22,605.73,0.30306855]
[1742109578313,0.32936991,607.22,605.74,0.33017466]
[1742109578610,0.32936991,607.22,605.75,0.30306855]
[1742109579004,1.91945552,607.22,605.76,1.17278284]
[1742109579204,1.91945552,607.22,605.77,0.63322686]
[1742109579410,1.91945552,607.22,605.78,0.33015286]
[1742109579610,1.91945552,607.22,605.79,1.4758045]
[1742109579811,1.91945552,607.22,605.8,0.30302166]
[1742109580011,0.32936991,607.22,605.8,0.30302166]
[1742109580314,0.32936991,607.22,605.79,1.17278284]
[1742109580712,2.51296556,607.2,605.79,1.17278284]
[1742109581012,0.32939161,607.18,605.79,1.17278284]
[1742109583610,2.51296556,607.07,605.79,1.17278284]
[1742109583814,0.32946215,607.05,605.79,1.17278284]
[1742109585013,3.96894756,607.05,605.79,1.17278284]
[1742109585211,3.63948541,607.04,605.79,1.17278284]
[1742109585414,0.32947843,607.02,605.79,1.17278284]
[1742109585610,3.96896384,607.02,605.79,1.17278284]
[1742109585810,3.63948541,607.01,605.79,1.17278284]
[1742109586012,3.9689747,607.0,605.79,1.17278284]
[1742109586210,3.96898012,606.99,605.79,1.17278284]
[1742109586512,0.32950014,606.98,605.79,1.17278284]
[1742109588221,0.32950014,606.98,605.79,2.24478284]
[1742109588617,0.32950014,606.98,605.8,1.17278284]
[1742109589020,0.32950014,606.98,605.81,1.17278284]
[1742109589716,0.32950014,606.98,605.82,1.17278284]
[1742109590115,0.32950014,606.98,605.83,1.17278284]
[1742109590721,0.32950014,606.98,605.84,1.17278284]
[1742109591520,0.32950014,606.98,605.85,1.17278284]
[1742109592021,0.32950014,606.98,605.86,1.17278284]
[1742109592521,0.32950014,606.98,605.79,1.072]
[1742109592820,0.32950014,606.98,605.8,0.30309137]
[1742109593224,0.32950014,606.98,605.81,1.16045528]
[1742109593617,0.32950014,606.98,605.82,0.30309479]
[1742109594120,0.32950014,606.98,605.83,1.16045528]
[1742109594319,0.32950014,606.98,605.84,0.30309479]
[1742109594520,0.32950014,606.98,605.83,1.16045528]
[1742109594719,0.32950014,606.98,605.84,0.30309742]
[1742109595118,0.32950014,606.98,605.8,0.30309742]
[1742109595325,0.32950014,606.98,605.79,1.072]
[1742109595625,0.32950014,606.98,605.8,2.17326121]
[1742109596226,0.32950014,606.98,605.81,1.16026121]
[1742109602738,0.32950014,606.98,605.81,2.74726121]
[1742109603836,0.32950014,606.98,605.82,1.16026121]
[1742109604343,0.32950014,606.98,605.83,1.16026121]